bitfinex-derivatives/quotes_BTCF0:USTF0_20250827
["timestamp","ask_amount","ask_price","bid_price","bid_amount"]
[1756280980307,0.26889521,110790.0,110780.0,0.15438]
[1756280980713,0.26889521,110790.0,110780.0,0.50686371]
[1756280980922,0.26789521,110790.0,110780.0,0.50686371]
[1756280981608,0.19891521,110790.0,110780.0,0.50686371]
[1756280981813,0.26789521,110790.0,110780.0,0.50686371]
[1756280982015,0.26789521,110790.0,110780.0,0.50786371]
[1756280982416,0.26789521,110790.0,110780.0,0.50686371]
[1756280984612,0.16318047,110790.0,110780.0,0.50686371]
[1756280984815,0.63962418,110790.0,110780.0,0.09101]
[1756280985018,0.0902815,110760.0,110750.0,0.03159]
[1756280985212,0.61118639,110760.0,110750.0,4e-05]
[1756280985524,0.64521639,110760.0,110750.0,0.03159]
[1756280985821,0.17432639,110760.0,110750.0,0.78645371]
[1756280986004,0.28441639,110760.0,110750.0,0.78645371]
[1756280986205,0.28441639,110760.0,110750.0,0.79045371]
[1756280987012,0.28441639,110760.0,110750.0,0.80420371]
[1756280987715,0.28441639,110760.0,110750.0,0.02842]
[1756280987922,0.9977001,110760.0,110750.0,0.00604]
[1756280988214,0.64521639,110760.0,110750.0,0.09321441]
[1756280988420,1.49073639,110760.0,110750.0,0.09321441]
[1756280988622,1.49073639,110760.0,110750.0,0.08460276]
[1756280989120,1.49073639,110760.0,110750.0,0.10380276]
[1756280989708,0.64521639,110760.0,110750.0,0.10380276]
[1756280989912,1.49157639,110760.0,110750.0,0.10380276]
[1756280990222,0.63640688,110760.0,110750.0,0.08460276]
[1756280990420,1.48280688,110760.0,110750.0,0.08460276]
[1756280990918,1.83529059,110760.0,110750.0,0.07055835]
[1756280991115,0.98889059,110760.0,110750.0,0.07055835]
[1756280991421,0.63640688,110760.0,110750.0,0.07055835]
[1756280991722,0.24065688,110760.0,110750.0,0.81679206]
[1756280991923,0.27560688,110760.0,110750.0,0.81679206]
[1756280992322,0.62809059,110760.0,110750.0,0.01662835]
[1756280992622,1.35889059,110760.0,110750.0,0.01662835]
[1756280992821,0.98889059,110760.0,110750.0,0.01662835]
[1756280993127,1.83661059,110760.0,110750.0,0.01662835]
[1756280994120,0.98889059,110760.0,110750.0,0.01662835]
[1756280994320,1.83657059,110760.0,110750.0,0.01662835]
[1756280996222,0.24065688,110760.0,110750.0,0.78524206]
[1756280996524,0.24065688,110760.0,110750.0,2.00428136]
[1756280996525,0.08147199,110760.0,110750.0,2.00428136]
[1756280996827,0.08147199,110760.0,110750.0,1.91399206]
[1756280997126,0.13493125,110770.0,110760.0,0.08688]
[1756280997323,0.25889125,110770.0,110760.0,0.81075206]
[1756280997524,0.29384125,110770.0,110760.0,0.81075206]
[1756280998327,0.29384125,110770.0,110760.0,0.81375206]
[1756280999117,0.24052125,110770.0,110760.0,0.81375206]
[1756280999325,0.20649125,110770.0,110760.0,0.81375206]
[1756280999528,0.20649125,110770.0,110760.0,1.66143206]
[1756280999834,0.18375125,110770.0,110760.0,1.66143206]
[1756281000136,0.1175172,110770.0,110760.0,0.81475206]
[1756281000339,0.1175172,110770.0,110760.0,1.66219206]
[1756281000539,0.1175172,110770.0,110760.0,1.30970835]
[1756281000735,0.1175172,110770.0,110760.0,0.80416371]
[1756281000931,0.2308172,110770.0,110760.0,0.81474893]
[1756281001132,0.27619862,110770.0,110760.0,0.81474893]
[1756281001334,0.27619862,110770.0,110760.0,1.66194893]
[1756281001538,0.29456862,110770.0,110760.0,0.44851522]
[1756281001832,0.29456862,110770.0,110760.0,0.80099893]
[1756281002033,0.29456862,110770.0,110760.0,0.80527893]
[1756281002839,0.09027,110780.0,110770.0,0.09116]
[1756281003035,0.11751,110780.0,110770.0,0.81502893]
[1756281003238,0.11751,110780.0,110770.0,0.8150291]
[1756281003734,0.24918,110780.0,110770.0,0.8150291]
[1756281003935,0.24918,110780.0,110770.0,0.39376539]
[1756281004338,0.85166371,110780.0,110770.0,0.03396539]
[1756281004538,1.69986371,110780.0,110770.0,0.01158539]
[1756281004738,1.34738,110780.0,110770.0,0.01158539]
[1756281005038,0.24918,110780.0,110770.0,0.8022791]
[1756281005242,0.24918,110780.0,110770.0,0.8170291]
[1756281006539,0.24918,110780.0,110770.0,0.81702947]
[1756281006940,0.24918,110780.0,110770.0,0.45079576]
[1756281007142,1.21246371,110780.0,110770.0,0.01258576]
[1756281008842,1.21246371,110780.0,110770.0,0.04531576]
[1756281009543,1.21246371,110780.0,110770.0,0.01258576]
[1756281009737,1.21246371,110780.0,110770.0,0.03473]
[1756281010042,1.21246371,110780.0,110770.0,0.04531632]
[1756281010639,0.85998,110780.0,110770.0,0.05657632]
[1756281010943,0.11751,110780.0,110770.0,0.81777003]
[1756281011643,0.14104,110780.0,110770.0,0.81777003]
[1756281012241,0.1660518,110780.0,110770.0,0.81777003]
[1756281012643,0.1090418,110780.0,110770.0,1.66637003]
[1756281012845,0.1090418,110780.0,110770.0,1.75664293]
[1756281013346,0.1090418,110780.0,110770.0,1.81684299]
[1756281014045,0.07292347,110790.0,110780.0,0.1821648]
[1756281014244,0.06087,110800.0,110780.0,0.87597009]
[1756281014446,0.05092,110800.0,110790.0,0.86538377]
[1756281014742,0.02739,110800.0,110790.0,1.72393009]
[1756281014944,0.02739,110810.0,110800.0,0.0919]
[1756281015139,0.02739,110810.0,110800.0,0.87597009]
[1756281015345,0.14112,110810.0,110800.0,0.46328632]
[1756281015540,0.14112,110810.0,110800.0,0.87597009]
[1756281016248,0.14112,110810.0,110800.0,0.46328632]
[1756281016449,0.14112,110810.0,110800.0,0.87597009]
[1756281017248,0.1602,110810.0,110800.0,0.87697009]
[1756281018147,0.1602,110810.0,110800.0,0.86322009]
[1756281018348,0.1602,110810.0,110800.0,0.45153632]
[1756281020045,0.1602,110810.0,110800.0,0.44095]
[1756281020247,0.1602,110810.0,110800.0,0.4505324]
[1756281020648,0.1602,110810.0,110800.0,0.43995]
[1756281020849,0.1602,110810.0,110800.0,0.4505324]
[1756281021648,0.1602,110810.0,110800.0,0.4642824]
[1756281022348,0.1602,110810.0,110800.0,0.4632824]
[1756281022749,0.05092,110810.0,110800.0,0.4632824]
[1756281023144,0.05092,110810.0,110800.0,0.87596617]
[1756281024151,0.1602,110810.0,110800.0,0.86221617]
[1756281024348,0.1602,110810.0,110800.0,0.50141617]
[1756281024554,0.1602,110810.0,110800.0,0.4495324]
[1756281026055,0.1602,110810.0,110800.0,0.4632824]
[1756281030350,0.1602,110810.0,110800.0,0.46328261]
[1756281032355,0.02739,110810.0,110800.0,0.87596638]
[1756281032562,0.0706794,110820.0,110810.0,0.0919]
[1756281032759,0.0471494,110820.0,110810.0,0.87596638]
[1756281032963,0.0471494,110820.0,110810.0,0.95660478]
[1756281033154,0.0706794,110820.0,110810.0,0.87596638]
[1756281033357,0.06221441,110820.0,110810.0,0.87596638]
[1756281033960,0.06221441,110820.0,110810.0,0.87696638]
[1756281034363,0.06221441,110820.0,110810.0,1.31032261]
[1756281034561,0.06221441,110820.0,110810.0,1.72300638]
[1756281034962,0.06221441,110820.0,110810.0,1.72400638]
[1756281035162,0.10747005,110820.0,110810.0,1.72400638]
[1756281035364,0.10747005,110820.0,110810.0,1.66226199]
[1756281035565,0.10747005,110820.0,110810.0,1.66326199]
[1756281036668,0.01129441,110820.0,110810.0,1.66326199]
[1756281036864,0.0274,110830.0,110810.0,1.86535199]
[1756281037068,0.0274,110830.0,110820.0,0.80315938]
[1756281037270,0.0274,110830.0,110820.0,0.81374199]
[1756281037859,0.07208222,110830.0,110820.0,0.81374199]
[1756281039265,0.11363924,110840.0,110820.0,0.81374199]
[1756281039466,0.15785924,110840.0,110830.0,0.80315938]
[1756281039764,0.09197924,110840.0,110830.0,0.81374199]
[1756281040470,0.15785924,110840.0,110830.0,0.81374199]
[1756281040662,0.14939558,110840.0,110830.0,0.81373896]
[1756281041666,0.21336202,110840.0,110830.0,0.81373896]
[1756281042573,0.21336202,110840.0,110830.0,0.44804958]
[1756281044777,0.21436202,110840.0,110830.0,0.08724958]
[1756281045175,0.21436202,110840.0,110830.0,0.10099958]
[1756281045567,0.21436202,110840.0,110830.0,0.08724958]
[1756281046778,0.21336202,110840.0,110830.0,0.08724958]
[1756281047071,0.21336202,110840.0,110830.0,0.10099958]
[1756281047273,0.30358182,110840.0,110830.0,0.10099958]
[1756281047472,0.08380202,110840.0,110830.0,0.54316696]
[1756281047678,0.04450644,110840.0,110830.0,1.15396696]
[1756281047973,0.12253278,110850.0,110840.0,0.1806401]
[1756281048176,0.12253278,110850.0,110840.0,0.90395906]
[1756281048576,0.16700654,110850.0,110840.0,0.90395906]
[1756281049868,0.10031278,110850.0,110840.0,0.90395906]
[1756281050382,0.10031278,110850.0,110840.0,0.98459746]
[1756281050771,0.12253278,110850.0,110840.0,0.98459746]
[1756281050974,0.12253278,110850.0,110840.0,0.98459616]
[1756281052480,0.10031278,110850.0,110840.0,0.63265678]
[1756281052672,0.07291278,110850.0,110840.0,1.23459616]
[1756281052872,0.20422159,110860.0,110850.0,0.1325238]
[1756281053073,0.25929159,110860.0,110850.0,0.90395146]
[1756281053275,0.31156159,110860.0,110850.0,0.81373766]
[1756281053476,0.31156159,110860.0,110850.0,0.79998766]
[1756281053774,0.31156159,110860.0,110850.0,0.44804828]
[1756281053972,0.31156159,110860.0,110850.0,0.44772828]
[1756281054174,0.31156159,110860.0,110850.0,0.44804828]
[1756281054474,0.31156159,110860.0,110850.0,0.44804807]
[1756281054676,0.31256159,110860.0,110850.0,0.44804807]
[1756281055381,0.11501459,110860.0,110850.0,0.90395045]
[1756281055875,0.08788,110860.0,110850.0,0.94065045]
[1756281056075,0.1101,110860.0,110850.0,0.94065045]
[1756281056279,0.12956,110860.0,110850.0,0.94065045]
[1756281056478,0.20067671,110860.0,110850.0,0.94065045]
[1756281057083,0.29088161,110860.0,110850.0,0.94065045]
[1756281057877,0.31828161,110860.0,110850.0,0.94065045]
[1756281058686,0.35682664,110860.0,110850.0,0.94065045]
[1756281060187,0.35682664,110860.0,110850.0,0.58871107]
[1756281060390,0.35682664,110860.0,110850.0,0.94065045]
[1756281060888,0.35682664,110860.0,110850.0,1.78396973]
[1756281061184,0.35682664,110860.0,110850.0,0.94064973]
[1756281062083,0.26662174,110860.0,110850.0,0.46496735]
[1756281062292,0.61856112,110860.0,110850.0,0.39452735]
[1756281062480,0.61856112,110860.0,110850.0,0.45168735]
[1756281062677,0.61856112,110860.0,110850.0,0.49405735]
[1756281062881,0.61856112,110860.0,110850.0,0.52228735]
[1756281063089,0.26662174,110860.0,110850.0,0.52228735]
[1756281063494,0.26662174,110860.0,110850.0,0.52228773]
[1756281063695,0.26662174,110860.0,110850.0,0.87422711]
[1756281067688,0.14273671,110860.0,110850.0,0.87422711]
[1756281067895,0.07111671,110860.0,110850.0,0.87422711]
[1756281068087,0.16174,110870.0,110860.0,0.14542]
[1756281068292,0.16174,110870.0,110860.0,0.86873711]
[1756281069793,0.19896615,110870.0,110860.0,0.86873711]
[1756281070295,0.19896615,110870.0,110860.0,0.86873632]
[1756281070695,0.27057433,110870.0,110860.0,0.86873632]
[1756281071694,0.07160818,110870.0,110860.0,1.96329632]
[1756281072001,0.05257081,110870.0,110860.0,1.96329632]
[1756281072191,0.02044079,110880.0,110870.0,0.14542]
[1756281072396,0.02044079,110880.0,110870.0,0.98212112]
[1756281072698,0.02044079,110880.0,110870.0,0.97154418]
[1756281072893,0.02044079,110880.0,110870.0,0.6196048]
[1756281073088,0.02044079,110880.0,110870.0,1.81590418]
[1756281073495,0.07274079,110880.0,110870.0,0.97154418]
[1756281073800,0.07274079,110880.0,110870.0,1.81590418]
[1756281074000,0.07274079,110880.0,110870.0,1.70251938]
[1756281074694,0.14363544,110880.0,110870.0,1.71309459]
[1756281075203,0.14363544,110880.0,110870.0,1.79405018]
[1756281075502,0.14363544,110880.0,110870.0,0.94969018]
[1756281075704,0.14363544,110880.0,110870.0,1.79605018]
[1756281076001,0.25307544,110880.0,110870.0,1.79569018]
[1756281076303,0.25307544,110880.0,110870.0,1.79469018]
[1756281076602,0.25307544,110880.0,110870.0,1.79369018]
[1756281077297,0.09133544,110880.0,110870.0,1.79369018]
[1756281077498,0.52450069,110880.0,110870.0,0.86873459]
[1756281077699,1.16428007,110880.0,110870.0,0.4523308]
[1756281077898,2.05249032,110880.0,110870.0,0.4523308]
[1756281078103,2.41329032,110880.0,110870.0,0.01057521]
[1756281078497,2.56309032,110880.0,110870.0,0.01057521]
[1756281078692,0.15974,110860.0,110850.0,0.44175559]
[1756281078899,0.09706,110850.0,110840.0,0.59775559]
[1756281079206,0.16174,110850.0,110840.0,0.59775559]
[1756281079505,0.16174,110850.0,110840.0,0.94969497]
[1756281079895,0.16174,110850.0,110840.0,0.53716559]
[1756281080100,1.10367938,110850.0,110840.0,0.40429]
[1756281080299,1.10367938,110850.0,110840.0,0.43678]
[1756281080300,0.41174,110850.0,110840.0,0.43678]
[1756281080601,0.41174,110850.0,110840.0,0.1279]
[1756281080800,0.41174,110850.0,110840.0,0.23695559]
[1756281080996,0.74174,110850.0,110840.0,0.20885559]
[1756281082102,0.74374,110850.0,110840.0,0.20885559]
[1756281082700,0.74174,110850.0,110840.0,0.20885559]
[1756281082906,0.74374,110850.0,110840.0,0.20885559]
[1756281083699,1.13567938,110850.0,110840.0,0.04349]
[1756281083900,0.16174,110840.0,110830.0,0.47036]
[1756281084200,0.1818949,110840.0,110830.0,0.3608]
[1756281084402,1.94923428,110840.0,110830.0,0.3608]
[1756281085002,1.96923428,110840.0,110830.0,0.3608]
[1756281085204,1.6182949,110840.0,110830.0,0.3608]
[1756281085602,1.6182949,110840.0,110830.0,0.41547]
[1756281086500,1.9790949,110840.0,110830.0,0.10956]
[1756281087108,1.9790949,110840.0,110830.0,0.07598]
[1756281087407,0.16174,110830.0,110820.0,0.94969497]
[1756281089004,0.16174,110830.0,110820.0,0.95069497]
[1756281089710,0.16274,110830.0,110820.0,0.95069497]
[1756281090109,0.16274,110830.0,110820.0,0.86873938]
[1756281090300,0.16274,110830.0,110820.0,0.09541]
[1756281090506,0.16274,110830.0,110810.0,1.38056559]
[1756281090507,0.79761938,110830.0,110810.0,1.38056559]
[1756281090700,0.09706,110820.0,110810.0,1.38056559]
[1756281090907,0.18170088,110820.0,110810.0,0.52738152]
[1756281091211,0.06468,110820.0,110810.0,0.52738152]
[1756281091408,0.06544048,110820.0,110810.0,0.8793209]
[1756281091810,0.10368495,110820.0,110810.0,0.8793209]
[1756281092816,0.1748924,110820.0,110810.0,0.8793209]
[1756281093515,0.2098324,110820.0,110810.0,0.8793209]
[1756281094313,0.89230178,110820.0,110810.0,0.52738152]
[1756281094511,0.5403624,110820.0,110810.0,0.52738152]
[1756281095415,0.2619324,110820.0,110810.0,0.52738152]
[1756281095916,0.2913624,110820.0,110810.0,0.52738152]
[1756281097519,0.6013624,110820.0,110810.0,0.52738152]
[1756281097711,0.2913624,110820.0,110810.0,0.52738152]
[1756281098017,0.66330178,110820.0,110810.0,0.16658152]
[1756281098208,0.3113624,110820.0,110810.0,0.13409152]
[1756281098414,1.21330178,110820.0,110810.0,0.01058152]
[1756281098717,0.8733413,110820.0,110810.0,0.01058152]
[1756281098906,1.20220192,110820.0,110810.0,0.01058152]
[1756281099112,1.5541413,110820.0,110810.0,0.01058152]
[1756281099716,1.7339413,110820.0,110800.0,0.02711]
[1756281100018,1.71669938,110810.0,110800.0,0.02711]
[1756281100318,2.03669938,110810.0,110800.0,0.02711]
[1756281100617,1.09678938,110810.0,110790.0,0.42329]
[1756281100916,0.15832,110800.0,110790.0,0.5237]
[1756281101715,0.12989,110800.0,110790.0,0.5237]
[1756281102314,0.15832,110800.0,110790.0,0.5237]
[1756281102518,0.15832,110800.0,110790.0,0.5247]
[1756281102718,0.12989,110800.0,110790.0,0.5247]
[1756281103119,0.51025938,110800.0,110790.0,0.1639]
[1756281103319,0.53025938,110800.0,110790.0,0.1639]
[1756281103722,0.53025938,110800.0,110790.0,0.1649]
[1756281103920,0.51025938,110800.0,110790.0,0.09501]
[1756281104115,0.47832,110800.0,110790.0,0.12952]
[1756281104426,0.15832,110800.0,110790.0,0.1649]
[1756281104619,0.48832,110800.0,110790.0,0.12952]
[1756281105018,0.48832,110800.0,110790.0,0.1649]
[1756281105525,0.15832,110800.0,110790.0,0.1639]
[1756281105732,0.12989,110800.0,110790.0,0.51483938]
[1756281106026,0.02446,110800.0,110790.0,0.51483938]
[1756281106224,0.13089,110800.0,110790.0,0.1629]
[1756281106523,0.15932,110800.0,110790.0,0.1629]
[1756281106725,0.17932,110800.0,110790.0,0.1629]
[1756281107121,0.50932,110800.0,110790.0,0.1629]
[1756281107321,0.17932,110800.0,110790.0,0.1629]
[1756281107523,0.15089,110800.0,110790.0,0.1629]
[1756281108220,0.13089,110800.0,110790.0,0.1629]
[1756281111324,0.13089,110800.0,110790.0,0.5237]
[1756281111723,0.28069,110800.0,110790.0,0.53428401]
[1756281111923,0.28069,110800.0,110790.0,0.53428389]
[1756281114620,0.64069,110800.0,110790.0,0.53428389]
[1756281115121,0.66912,110800.0,110790.0,0.17348389]
[1756281115318,0.32912,110800.0,110790.0,0.17348389]
[1756281115523,1.85952876,110800.0,110770.0,0.39754511]
[1756281115717,0.15243,110780.0,110770.0,0.13554428]
[1756281115930,0.83436938,110780.0,110770.0,0.04662]
[1756281116120,0.15243,110780.0,110770.0,0.07373]
[1756281116320,0.87436938,110780.0,110770.0,0.10824]
[1756281116528,0.87436938,110780.0,110770.0,0.12752]
[1756281116832,0.50436938,110780.0,110770.0,0.12852]
[1756281117128,0.88436938,110780.0,110770.0,0.12852]
[1756281117726,0.88436938,110780.0,110770.0,0.1649]
[1756281118321,0.88436938,110780.0,110770.0,0.02811]
[1756281118322,1.38516938,110780.0,110770.0,0.02811]
[1756281118524,1.38516938,110780.0,110770.0,0.002]
[1756281118921,1.50125182,110780.0,110770.0,0.002]
[1756281119127,1.50125182,110780.0,110770.0,0.02915]
[1756281120729,1.50125182,110780.0,110770.0,0.00204]
[1756281121128,1.25125182,110780.0,110770.0,0.00204]
[1756281121623,1.50125182,110780.0,110770.0,0.00204]
[1756281122128,1.50125182,110780.0,110760.0,0.02711]
[1756281122426,1.71016938,110770.0,110760.0,0.02711]
[1756281122729,2.06016938,110770.0,110760.0,0.02711]
[1756281123226,0.15243,110760.0,110750.0,0.07373]
[1756281123426,1.20216938,110760.0,110750.0,0.05011]
[1756281123634,1.20216938,110760.0,110750.0,0.08462]
[1756281123933,1.20216938,110760.0,110750.0,0.10824]
[1756281124528,1.20216938,110760.0,110750.0,0.05011]
[1756281124729,1.20216938,110760.0,110750.0,0.02711]
[1756281124929,1.20116938,110760.0,110750.0,0.02711]
[1756281125129,1.20016938,110760.0,110750.0,0.02711]
[1756281125433,1.1874143,110760.0,110740.0,0.06162]
[1756281125627,1.68267938,110750.0,110740.0,0.10824]
[1756281125824,2.03267938,110750.0,110740.0,0.10824]
[1756281126028,1.68074,110750.0,110740.0,0.12752]
[1756281126230,0.05704,110750.0,110740.0,0.1629]
[1756281126432,0.86838,110750.0,110740.0,0.1629]
[1756281126731,1.2658,110750.0,110740.0,0.1629]
[1756281126932,1.29423,110750.0,110740.0,0.1629]
[1756281127126,1.3156,110750.0,110740.0,0.1629]
[1756281127324,1.6764,110750.0,110740.0,0.1629]
[1756281127526,1.6764,110750.0,110740.0,0.17348913]
[1756281127833,1.6764,110750.0,110740.0,0.17548913]
[1756281128421,1.6764,110750.0,110740.0,0.17448913]
[1756281128627,2.02833938,110750.0,110740.0,0.17548913]
[1756281128931,2.02833938,110750.0,110740.0,0.14010913]
[1756281129434,2.02833938,110750.0,110740.0,0.13779913]
[1756281129633,2.02833938,110750.0,110740.0,0.10559913]
[1756281129828,0.02346,110750.0,110740.0,0.77579851]
[1756281130029,0.43142492,110760.0,110750.0,0.1603]
[1756281130030,0.91634492,110760.0,110750.0,0.1603]
[1756281130230,0.08062492,110760.0,110750.0,0.88362851]
[1756281130430,0.08062492,110760.0,110750.0,1.13362661]
[1756281130632,0.07062492,110760.0,110750.0,1.13362661]
[1756281130828,0.3608,110770.0,110750.0,1.03595661]
[1756281131028,0.05385,110770.0,110760.0,0.5211]
[1756281131230,0.05385,110770.0,110760.0,0.88362661]
[1756281132133,0.1141,110770.0,110760.0,0.52282661]
[1756281132438,0.50464,110770.0,110760.0,0.17088723]
[1756281132627,0.50500938,110770.0,110760.0,0.17088723]
[1756281132829,1.23680938,110770.0,110760.0,0.17088723]
[1756281133133,1.73019,110770.0,110760.0,0.17088723]
[1756281133339,1.39019,110770.0,110760.0,0.17088742]
[1756281133629,1.73019,110770.0,110760.0,0.17088742]
[1756281133824,2.08212938,110770.0,110760.0,0.01058742]
[1756281134228,2.08212938,110770.0,110760.0,0.03999742]
[1756281134534,2.08312938,110770.0,110760.0,0.03999742]
[1756281135431,2.33312938,110770.0,110760.0,0.03999742]
[1756281135631,2.33312938,110770.0,110760.0,0.01058742]
[1756281136330,2.48292938,110770.0,110740.0,0.42241]
[1756281136532,0.84918938,110750.0,110740.0,0.0399981]
[1756281136731,2.04494938,110750.0,110740.0,0.0105881]
[1756281137335,2.04494938,110750.0,110740.0,0.0399981]
[1756281137530,2.04494938,110750.0,110740.0,0.0721981]
[1756281137832,2.04494938,110750.0,110740.0,0.0731981]
[1756281138026,2.04494938,110750.0,110740.0,0.0946981]
[1756281138432,2.04494938,110750.0,110740.0,0.0624981]
[1756281138633,2.04494938,110750.0,110740.0,0.0115881]
[1756281139028,2.29494938,110750.0,110740.0,0.0115881]
[1756281139429,0.07609,110740.0,110720.0,0.48755797]
[1756281139625,0.98161,110730.0,110720.0,0.55018797]
[1756281139929,1.31161,110730.0,110720.0,0.55018797]
[1756281140336,1.34161,110730.0,110720.0,0.55018797]
[1756281140736,0.98161,110730.0,110720.0,0.55018797]
[1756281140936,1.29161,110730.0,110720.0,0.55018797]
[1756281141629,0.15645,110730.0,110720.0,0.55118797]
[1756281141937,1.36101,110730.0,110720.0,0.55118797]
[1756281142631,1.00101,110730.0,110720.0,0.55118797]
[1756281142834,1.65294938,110730.0,110720.0,0.51898797]
[1756281143034,1.65294938,110730.0,110720.0,0.55118797]
[1756281143035,1.35294938,110730.0,110720.0,0.55118797]
[1756281143336,1.65294938,110730.0,110720.0,0.55118797]
[1756281145036,1.33073,110730.0,110720.0,0.55118797]
[1756281145432,0.98073,110730.0,110720.0,0.55118797]
[1756281145635,0.98073,110730.0,110720.0,0.03008797]
[1756281145636,2.24346938,110730.0,110720.0,0.03008797]
[1756281146334,2.23465722,110730.0,110720.0,0.04420622]
[1756281146737,2.23465722,110730.0,110720.0,0.03008797]
[1756281147040,2.25436542,110730.0,110720.0,0.02908797]
[1756281147338,2.25616542,110730.0,110720.0,0.02908797]
[1756281147537,1.41208542,110730.0,110720.0,0.02908797]
[1756281147737,1.90446604,110730.0,110720.0,0.02908797]
[1756281147940,2.25640542,110730.0,110720.0,0.02908797]
[1756281148239,2.07865696,110730.0,110720.0,0.02908797]
[1756281148441,1.84838696,110730.0,110720.0,0.05849797]
[1756281148938,1.96749181,110730.0,110720.0,0.05849797]
[1756281149238,1.00406696,110730.0,110720.0,0.18938797]
[1756281149435,1.13584758,110730.0,110720.0,0.18938797]
[1756281149635,1.48754696,110730.0,110720.0,0.18938797]
[1756281150439,1.85967696,110730.0,110720.0,0.18938797]
[1756281150637,1.86167696,110730.0,110720.0,0.18938797]
[1756281150835,0.30465758,110730.0,110720.0,0.18938797]
[1756281151041,1.11655758,110730.0,110720.0,0.55018797]
[1756281151241,0.9087282,110730.0,110720.0,0.55018797]
[1756281151443,1.3785282,110730.0,110720.0,0.5607784]
[1756281151631,0.0424382,110730.0,110720.0,1.16271778]
[1756281151838,0.0424382,110730.0,110720.0,1.16271798]
[1756281151839,0.003,110730.0,110720.0,1.16271798]
[1756281152140,0.003,110730.0,110720.0,0.8107786]
[1756281152339,0.003,110730.0,110720.0,1.16271798]
[1756281153935,0.003,110730.0,110720.0,0.8107786]
[1756281154134,0.003,110730.0,110720.0,1.16271798]
[1756281157146,0.003,110730.0,110720.0,2.00611798]
[1756281158340,0.003,110730.0,110720.0,1.99552735]
[1756281158643,0.003,110730.0,110720.0,2.00611667]
[1756281160747,0.78822199,110730.0,110720.0,0.56077729]
[1756281161147,0.78822199,110730.0,110720.0,0.56077731]
[1756281161650,1.63182199,110730.0,110720.0,0.56077731]
[1756281161849,1.63182199,110730.0,110720.0,0.19997731]
[1756281166947,0.77822199,110730.0,110720.0,0.19997731]
[1756281167150,1.62078199,110730.0,110720.0,0.19997731]
[1756281167646,1.26884261,110730.0,110720.0,0.19997731]
[1756281167851,1.23884261,110730.0,110720.0,0.19997731]
[1756281168853,1.59078199,110730.0,110720.0,0.19997731]
[1756281169952,1.63002199,110730.0,110720.0,0.19997731]
[1756281170147,1.27808261,110730.0,110720.0,0.19997731]
[1756281170347,0.89808261,110730.0,110720.0,0.19997731]
[1756281170748,0.89808261,110730.0,110720.0,0.55191669]
[1756281170948,0.88486261,110730.0,110720.0,0.55191669]
[1756281171153,0.86428261,110730.0,110720.0,0.55191669]
[1756281171355,0.88486261,110730.0,110720.0,0.54132735]
[1756281171546,0.89772261,110730.0,110720.0,0.55191779]
[1756281171948,0.05628261,110730.0,110720.0,0.55191779]
[1756281172148,0.05628261,110730.0,110720.0,0.99367338]
[1756281172954,0.003,110730.0,110720.0,1.24367338]
[1756281173150,0.003,110730.0,110720.0,1.16271779]
[1756281173957,0.003,110730.0,110720.0,1.27610259]
[1756281175952,0.003,110730.0,110720.0,1.16271779]
[1756281176158,0.003,110730.0,110720.0,0.81077841]
[1756281176359,0.03644,110730.0,110720.0,0.81077841]
[1756281177665,0.03644,110730.0,110720.0,2.00343779]
[1756281177666,0.003,110730.0,110720.0,2.00343779]
[1756281177964,1.9146191,110750.0,110740.0,0.16462]
[1756281178170,2.61655848,110750.0,110740.0,0.17521044]
[1756281178365,2.61655848,110750.0,110740.0,0.25635009]
[1756281178663,2.25575848,110750.0,110740.0,0.25635009]
[1756281179059,2.25875848,110750.0,110740.0,0.25635009]
[1756281179270,1.0139391,110750.0,110740.0,0.96908947]
[1756281179456,0.1708191,110750.0,110740.0,0.88794982]
[1756281179668,0.1708191,110750.0,110740.0,1.00133462]
[1756281179864,0.15044,110750.0,110740.0,1.00133462]
[1756281180070,0.15044,110750.0,110740.0,0.53601044]
[1756281180370,0.15044,110750.0,110740.0,0.88794982]
[1756281180570,0.13758,110750.0,110740.0,0.88794982]
[1756281180976,0.15044,110750.0,110740.0,0.52542]
[1756281181177,0.15044,110750.0,110740.0,0.53600822]
[1756281181477,0.14744,110750.0,110740.0,0.61819033]
[1756281181680,0.114,110750.0,110740.0,0.97012971]
[1756281182076,0.114,110750.0,110740.0,0.8889476]
[1756281182276,0.116,110750.0,110740.0,0.96910904]
[1756281182872,0.002,110750.0,110740.0,2.06250904]
[1756281183072,0.09102012,110760.0,110750.0,0.16462]
[1756281183274,0.09102012,110760.0,110750.0,1.0013324]
[1756281184967,0.09302012,110760.0,110750.0,1.0013324]
[1756281185173,0.09302012,110760.0,110750.0,0.8879476]
[1756281185977,0.09402012,110760.0,110750.0,0.96897697]
[1756281188984,0.09102012,110760.0,110750.0,0.97197697]
[1756281189886,0.11483012,110760.0,110750.0,0.97197697]
[1756281190076,0.11483012,110760.0,110750.0,0.62003759]
[1756281190279,0.11483012,110760.0,110750.0,0.97197697]
[1756281190490,0.11483012,110760.0,110750.0,0.96897697]
[1756281190684,0.11483012,110760.0,110750.0,0.95938875]
[1756281190988,0.11483012,110760.0,110750.0,0.96997528]
[1756281191381,0.11483012,110760.0,110750.0,0.88894591]
[1756281192192,0.11483012,110760.0,110750.0,1.00233071]
[1756281194286,0.11483012,110760.0,110750.0,0.65039133]
[1756281194484,0.11483012,110760.0,110750.0,1.00233071]
[1756281194888,0.11483012,110760.0,110750.0,1.08323049]
[1756281195088,0.17069012,110760.0,110750.0,0.73129111]
[1756281195388,0.17069012,110760.0,110750.0,0.96984569]
[1756281195389,0.11483012,110760.0,110750.0,0.96984569]
[1756281199688,0.11483012,110760.0,110750.0,0.61790631]
[1756281199988,0.11483012,110760.0,110750.0,0.96984569]
[1756281201092,0.11483012,110760.0,110750.0,0.95925916]
[1756281201285,0.11483012,110760.0,110750.0,0.9698457]
[1756281201686,0.09102012,110760.0,110750.0,0.9698457]
[1756281202586,0.11508012,110760.0,110750.0,0.61790632]
[1756281202787,0.11508012,110760.0,110750.0,0.9698457]
[1756281202994,0.09102012,110760.0,110750.0,0.9698457]
[1756281204697,0.09102012,110760.0,110750.0,0.88894592]
[1756281206396,0.09102012,110760.0,110750.0,0.89894592]
[1756281206896,0.07104288,110760.0,110750.0,0.89894592]
[1756281207092,0.03511,110780.0,110750.0,1.14894592]
[1756281207298,0.51477,110780.0,110770.0,0.51385938]
[1756281207596,0.51477,110780.0,110770.0,0.52444592]
[1756281207996,0.51477,110780.0,110770.0,0.966322]
[1756281208396,0.51477,110780.0,110770.0,0.61438262]
[1756281208590,0.4597,110780.0,110770.0,0.966322]
[1756281208895,0.41887162,110780.0,110770.0,0.966322]
[1756281209097,0.45323162,110780.0,110770.0,0.966322]
[1756281209395,0.45223162,110780.0,110770.0,0.88524525]